bitfinex/quotes_ETHUSD_20251220
["timestamp","ask_amount","ask_price","bid_price","bid_amount"]
[1766195354047,1.4969788,2981.6,2980.8,9.91262394]
[1766195354254,1.00821527,2981.5,2980.8,9.91262394]
[1766195355550,1.4568,2981.6,2980.8,9.91262394]
[1766195356053,1.0081509,2981.7,2980.8,9.91262394]
[1766195356346,1.59422821,2981.7,2980.8,9.91262394]
[1766195356737,3.05102821,2981.7,2980.8,9.91262394]
[1766195357344,1.63440701,2981.7,2980.8,9.91262394]
[1766195357948,0.0401788,2981.7,2980.8,9.91262394]
[1766195358137,0.002,2981.8,2980.8,9.91262394]
[1766195358338,1.4568,2981.7,2980.9,1.00810347]
[1766195358536,0.002,2981.8,2980.9,1.00810347]
[1766195359143,0.002,2981.8,2981.0,0.03354579]
[1766195359329,0.002,2981.8,2981.1,9.91262394]
[1766195359525,0.002,2981.8,2981.2,1.0281605]
[1766195360125,0.002,2981.8,2981.2,0.99461697]
[1766195363740,0.002,2981.8,2981.0,1.00808314]
[1766195364260,0.002,2981.8,2981.1,0.03354466]
[1766195364757,1.4368,2982.2,2981.0,0.03354579]
[1766195364955,1.4368,2982.2,2981.2,1.00799169]
[1766195365128,1.4368,2982.2,2981.3,0.03354241]
[1766195365525,1.4368,2982.2,2981.0,3.35457144]
[1766195365729,1.4368,2982.2,2981.4,1.00794766]
[1766195365946,1.4348,2982.1,2981.4,1.00794766]
[1766195371461,0.002,2982.2,2981.4,1.00794766]
[1766195372262,0.002,2982.1,2981.4,1.00794766]
[1766195377188,1.4372,2982.1,2981.4,1.00794766]
[1766195377483,1.4372,2982.1,2981.5,1.0922415]
[1766195377677,0.002,2982.1,2981.5,1.0922415]
[1766195377879,1.4352,2982.0,2981.1,1.32790387]
[1766195378180,0.002,2982.1,2981.6,0.13438941]
[1766195378348,1.4372,2982.1,2981.6,0.13438941]
[1766195378776,1.4352,2982.0,2981.6,0.13438941]
[1766195380091,0.002,2982.1,2981.6,0.13438941]
[1766195380292,0.37992092,2982.0,2981.1,0.001]
[1766195380602,1.0887,2981.9,2981.3,1.00799508]
[1766195380778,0.3465,2981.8,2981.3,1.00799508]
[1766195380983,1.4352,2981.8,2981.3,1.00799508]
[1766195381377,1.0887,2981.9,2981.3,1.00799508]
[1766195381577,1.0887,2981.9,2981.1,0.001]
[1766195381578,0.0401788,2981.8,2981.1,0.001]
[1766195381794,0.3465,2981.6,2981.1,0.001]
[1766195382108,1.4753788,2981.8,2981.1,0.001]
[1766195382413,0.002,2982.0,2981.1,0.13540386]
[1766195383208,0.002,2982.0,2981.2,0.03354353]
[1766195383568,0.002,2982.0,2981.1,0.13540386]
[1766195383768,0.002,2982.0,2981.2,0.34899475]
[1766195384496,0.002,2982.0,2981.3,0.03354241]
[1766195389006,0.002,2982.0,2981.2,0.6979895]
[1766195389207,0.002,2982.0,2981.2,0.34899475]
[1766195389505,1.4372,2982.0,2981.2,0.34899475]
[1766195390010,1.4372,2982.0,2981.3,0.001]
[1766195390715,1.4372,2982.0,2981.3,0.03454241]
[1766195391188,1.4372,2982.0,2981.3,0.001]
[1766195391393,0.47925446,2981.9,2981.3,0.001]
[1766195394514,1.4773788,2982.0,2981.3,0.001]
[1766195400190,1.4372,2982.0,2981.3,0.03454241]
[1766195400388,0.002,2982.0,2981.3,0.03454241]
[1766195400620,0.002,2982.0,2981.3,0.001]
[1766195402726,1.4372,2982.0,2981.3,0.001]
[1766195403328,1.92066257,2982.0,2981.3,0.001]
[1766195404188,0.48546257,2982.0,2981.3,0.001]
[1766195404423,1.4572,2981.9,2981.3,0.001]
[1766195404821,1.94266257,2982.0,2981.3,0.001]
[1766195404999,0.48546257,2982.0,2981.3,0.001]
[1766195405200,0.38408199,2981.9,2981.3,0.001]
[1766195405523,1.4572,2981.8,2981.3,0.001]
[1766195405688,0.38408199,2981.9,2981.3,0.001]
[1766195405894,1.4572,2981.8,2981.3,0.001]
[1766195406226,0.38408199,2981.9,2981.3,0.001]
[1766195406594,1.4572,2981.8,2981.3,0.001]
[1766195406938,0.56387643,2981.8,2981.3,0.001]
[1766195407095,1.4572,2981.6,2981.3,0.001]
[1766195409796,1.1113,2981.9,2981.3,0.001]
[1766195410020,0.3459,2981.8,2981.3,0.001]
[1766195414722,1.4572,2981.8,2981.3,0.001]
[1766195415098,1.4592,2981.8,2981.3,0.001]
[1766195418635,0.002,2981.8,2981.3,0.001]
[1766195420047,1.4229,2981.8,2981.3,0.001]
[1766195423538,0.002,2981.8,2981.3,0.001]
[1766195427440,1.4229,2981.8,2981.3,0.001]
[1766195434137,0.002,2981.8,2981.3,0.001]
[1766195436246,0.002,2982.0,2981.3,0.001]
[1766195438145,1.4578,2982.0,2981.3,0.001]
[1766195441934,0.57180101,2982.0,2981.3,0.001]
[1766195442152,0.0401788,2981.8,2981.3,0.001]
[1766195442452,0.3674,2981.6,2981.3,0.001]
[1766195443825,1.0884,2981.7,2981.3,0.001]
[1766195462780,0.3694,2981.8,2981.3,0.001]
[1766195463269,0.002,2981.8,2981.3,0.001]
[1766195463475,0.0421788,2982.0,2981.3,0.001]
[1766195463973,1.4558,2981.9,2981.3,0.001]
[1766195467155,0.0421788,2982.0,2981.3,0.001]
[1766195467156,0.002,2982.0,2981.3,0.001]
[1766195467571,0.443,2982.0,2981.3,0.001]
[1766195470082,1.9438,2982.0,2981.3,0.001]
[1766195470289,0.0401788,2981.9,2981.3,0.001]
[1766195470584,0.3533,2981.7,2981.3,0.001]
[1766195470759,1.5008,2981.7,2981.3,0.001]
[1766195471282,1.1475,2981.8,2981.3,0.001]
[1766195471487,1.1475,2981.6,2981.3,0.001]
[1766195471656,1.5008,2981.6,2981.3,0.001]
[1766195473268,1.5429788,2981.9,2981.3,0.001]
[1766195473455,2.0771151,2981.9,2981.3,0.001]
[1766195474075,1.5028,2981.9,2981.3,0.001]
[1766195474272,0.002,2981.9,2981.3,0.001]
[1766195474470,0.002,2981.9,2981.6,9.91541632]
[1766195475991,0.002,2981.9,2981.3,10.35741632]
[1766195476291,0.002,2981.9,2981.4,0.03354128]
[1766195476463,0.002,2981.9,2981.3,10.35741632]
[1766195476788,0.002,2981.9,2981.4,0.03354128]
[1766195476991,0.002,2981.9,2981.3,11.82950388]
[1766195477572,0.002,2981.9,2981.4,1.00792734]
[1766195480159,1.5028,2982.1,2981.4,1.00792734]
[1766195481777,1.5008,2982.0,2981.4,1.00792734]
[1766195482093,1.5008,2982.0,2981.4,2.29167046]
[1766195483806,0.002,2982.1,2981.4,2.29167046]
[1766195484294,1.5028,2982.1,2981.4,2.29167046]
[1766195486402,1.5028,2982.1,2981.4,2.29267046]
[1766195487709,1.5028,2982.1,2981.4,1.00892734]
[1766195491502,1.0956,2982.0,2981.4,1.00892734]
[1766195491686,1.4374,2981.9,2981.4,1.00892734]
[1766195492693,1.0956,2982.0,2981.4,1.00892734]
[1766195492887,1.4374,2981.8,2981.4,1.00892734]
[1766195493094,1.4374,2981.8,2981.4,0.001]
[1766195494333,0.3403,2981.5,2981.1,0.001]
[1766195494513,1.1422,2981.7,2981.1,0.001]
[1766195494694,0.3403,2981.4,2981.1,0.001]
[1766195494896,1.4825,2981.4,2981.1,0.001]
[1766195500333,1.4825,2981.6,2981.1,0.001]
[1766195502530,0.002,2981.4,2981.1,0.001]
[1766195517054,1.04818065,2981.8,2981.1,0.001]
[1766195517346,0.441,2981.9,2981.1,0.48156838]
[1766195517526,2.93159669,2981.9,2981.1,0.48156838]
[1766195517735,1.44909669,2981.9,2981.1,0.001]
[1766195518047,1.4825,2981.8,2981.1,0.001]
[1766195519153,0.002,2981.4,2981.1,0.001]
[1766195522326,1.4825,2981.8,2981.1,0.001]
[1766195522522,1.44909669,2981.9,2981.1,0.001]
[1766195522723,1.93356684,2981.9,2981.1,0.001]
[1766195522923,1.4825,2981.8,2981.1,0.001]
[1766195523158,1.93356684,2981.9,2981.1,0.001]
[1766195523357,1.4825,2981.8,2981.1,0.001]
[1766195524049,1.1422,2981.8,2981.1,0.001]
[1766195524251,1.493,2981.6,2981.1,0.001]
[1766195525172,0.0401788,2981.3,2980.8,1.00800185]
[1766195525324,1.493,2980.9,2980.6,0.001]
[1766195525523,0.0401788,2981.1,2980.6,0.001]
[1766195525524,1.493,2980.8,2980.6,0.001]
[1766195525724,1.137,2980.8,2980.3,0.001]
[1766195525921,1.62743999,2980.7,2980.3,0.001]
[1766195527458,1.493,2980.7,2980.3,0.001]
[1766195527651,0.442,2980.6,2980.3,0.001]
[1766195536761,1.493,2980.7,2980.3,0.001]
[1766195536957,1.935,2980.7,2980.3,0.001]
[1766195537157,1.493,2980.7,2980.3,0.001]
[1766195538061,0.442,2980.8,2980.3,0.001]
[1766195538367,0.441,2981.0,2980.3,0.001]
[1766195538934,0.442,2980.9,2980.3,0.001]
[1766195541069,0.066,2981.0,2980.3,0.001]
[1766195541369,1.00834404,2981.1,2980.3,0.001]
[1766195541546,1.493,2981.1,2980.3,0.001]
[1766195541864,0.002,2980.7,2980.3,0.001]
[1766195560287,0.0421788,2981.1,2980.3,0.001]
[1766195560489,1.5245788,2981.1,2980.3,0.001]
[1766195560782,1.4824,2981.0,2980.3,0.001]
[1766195560983,1.4824,2980.8,2980.3,0.001]
[1766195561188,1.4824,2980.8,2980.3,1.13833025]
[1766195573802,1.4844,2981.0,2980.3,1.13833025]
[1766195580598,0.002,2981.0,2980.3,1.13833025]
[1766195580798,1.4824,2980.9,2980.3,1.13833025]
[1766195582202,0.002,2981.0,2980.5,9.92095847]
[1766195582375,0.002,2981.0,2980.5,11.02688734]
[1766195584604,0.002,2981.0,2980.5,1.54692887]
[1766195584785,0.002,2981.0,2980.5,0.441]
[1766195584987,1.5073,2981.0,2980.5,0.441]
[1766195585195,1.5053,2980.9,2980.5,0.441]
[1766195586997,1.5053,2980.8,2980.5,0.441]
[1766195587206,1.5053,2980.7,2980.3,0.442]
[1766195587507,0.3397,2980.8,2980.3,0.442]
[1766195587710,1.5053,2980.8,2980.3,0.442]
[1766195595925,0.002,2980.9,2980.3,10.36295847]
[1766195597021,1.5073,2980.9,2980.3,10.36295847]
[1766195598325,1.5073,2980.9,2980.3,11.37131607]
[1766195598918,1.5073,2980.9,2980.3,1.4503576]
[1766195600517,1.5073,2980.9,2980.3,2.9232096]
[1766195607626,1.5073,2980.9,2980.3,1.914852]
[1766195608125,1.5073,2980.9,2980.3,2.9232096]
[1766195609130,1.5073,2980.9,2980.3,1.914852]
[1766195609335,0.002,2980.9,2980.3,1.914852]
[1766195609699,1.5743,2980.9,2980.3,0.442]
[1766195610034,0.002,2980.9,2980.3,0.442]
[1766195610421,1.5743,2980.9,2980.3,0.442]
[1766195614024,1.5743,2980.9,2980.3,1.4503576]
[1766195629016,0.002,2980.9,2980.3,0.442]
[1766195629234,0.3427,2980.7,2980.3,0.442]
[1766195629825,1.098,2980.8,2980.3,0.442]
[1766195630426,0.3447,2980.9,2980.3,0.442]
[1766195634647,1.4427,2980.9,2980.3,0.442]
[1766195634852,2.02767082,2980.9,2980.3,0.442]
[1766195636553,1.4427,2980.9,2980.3,0.442]
[1766195640559,0.002,2980.9,2980.3,0.442]
[1766195641255,1.4427,2980.9,2980.3,0.442]
[1766195658971,1.4427,2980.9,2980.4,1.0083576]
[1766195662462,0.3745,2980.6,2980.3,0.442]
[1766195662669,0.0421788,2980.9,2980.3,0.40907576]
[1766195662886,0.3745,2980.5,2980.3,0.40907576]
[1766195668597,0.3745,2980.5,2980.3,0.41007576]
[1766195671697,0.3745,2980.5,2980.3,0.001]
[1766195688751,0.3765,2980.5,2980.3,0.001]
[1766195692148,0.002,2980.5,2980.3,0.001]
[1766195703994,1.00841183,2980.8,2980.3,1.13842887]
[1766195704173,0.002,2981.0,2980.4,9.92187691]
[1766195705056,0.002,2981.0,2980.4,10.93015656]
[1766195705260,0.002,2981.0,2980.4,9.92187691]
[1766195705486,0.002,2981.0,2980.5,1.00827965]
[1766195705693,0.002,2981.0,2980.6,0.441]
[1766195706282,0.002,2981.0,2980.7,1.00827965]
[1766195709314,1.5516,2981.0,2980.7,1.00827965]
[1766195709612,1.0182375,2981.0,2980.7,1.00827965]
[1766195710226,1.0202375,2981.0,2980.7,1.00827965]
[1766195712229,1.1919,2980.9,2980.3,0.001]
[1766195712533,1.5496,2980.8,2980.3,0.001]
[1766195712695,0.3577,2980.6,2980.3,0.001]
[1766195712895,1.5496,2980.6,2980.3,0.001]
[1766195713096,0.442,2980.5,2980.3,0.001]
[1766195728618,2.0227,2980.5,2980.3,0.001]
[1766195729016,1.5807,2980.5,2980.3,0.001]
[1766195729338,2.0227,2980.4,2980.2,0.001]
[1766195730244,1.5807,2980.4,2980.2,0.001]
[1766195730541,1.5807,2980.4,2980.3,0.001]
[1766195731243,1.71516169,2980.4,2980.3,0.001]
[1766195742934,1.5192,2980.3,2980.1,0.001]
[1766195743567,0.442,2980.2,2980.1,0.001]
[1766195753270,0.002,2980.4,2980.1,0.001]
[1766195753472,0.442,2980.3,2980.1,0.001]
[1766195759301,0.444,2980.3,2980.1,0.001]
[1766195764893,1.5869,2980.2,2980.0,0.001]
[1766195765093,0.20309,2980.1,2979.7,0.001]
[1766195765274,1.5869,2979.9,2979.7,0.001]
[1766195766108,0.441,2979.8,2979.7,0.001]
[1766195767706,1.5869,2979.9,2979.7,0.001]
[1766195773901,1.00861525,2980.0,2979.7,0.001]
[1766195774307,1.5869,2980.6,2979.7,0.03456042]
[1766195774502,1.5869,2980.6,2979.8,0.99603533]
[1766195774710,1.2353,2980.3,2979.8,0.441]
[1766195775010,1.5869,2980.2,2979.7,0.001]
[1766195775317,1.5869,2980.2,2979.8,0.441]
[1766195775724,0.0401788,2980.5,2979.8,0.441]
[1766195775931,1.2353,2980.2,2979.8,0.441]
[1766195776145,0.3516,2980.1,2979.8,0.441]
[1766195777234,0.3516,2980.4,2979.8,0.47455929]
[1766195777427,1.5869,2980.4,2979.8,0.47455929]
[1766195777628,1.5869,2980.4,2979.8,0.03355929]
[1766195777852,1.5869,2980.4,2979.8,1.04208977]
[1766195778531,1.5869,2980.4,2979.8,1.00853048]
[1766195779338,1.5869,2980.5,2979.8,1.00853048]
[1766195779548,1.5974,2980.5,2979.8,1.00853048]
[1766195779841,0.441,2980.6,2979.8,1.00853048]
[1766195780044,1.5974,2980.5,2979.8,1.00853048]
[1766195780525,0.82480996,2980.6,2979.8,1.00853048]
[1766195780727,0.3597,2980.4,2979.8,1.00853048]
[1766195781026,1.5974,2980.4,2979.8,1.00853048]
[1766195781961,1.5994,2980.4,2979.8,1.00853048]
[1766195782160,1.5994,2980.4,2979.8,1.48929549]
[1766195782334,0.3597,2980.2,2979.8,1.00853048]
[1766195782666,1.5974,2980.2,2979.8,1.00853048]
[1766195789074,1.5974,2980.2,2979.8,1.00953048]
[1766195789973,1.2377,2980.1,2979.8,1.00953048]
[1766195790180,1.5974,2980.1,2979.8,1.00953048]
[1766195793386,1.5974,2980.3,2979.8,1.00953048]
[1766195795283,1.2495,2980.3,2979.8,1.00953048]
[1766195795489,1.6102,2980.2,2979.8,1.00953048]
[1766195797689,1.2495,2980.3,2979.8,1.00953048]
[1766195797873,1.6102,2980.0,2979.8,1.00953048]
[1766195803100,0.002,2980.4,2979.8,1.00953048]
[1766195803301,0.002,2980.4,2979.9,1.13766044]
[1766195803470,0.002,2980.4,2979.8,10.93263118]
[1766195803972,1.6122,2980.4,2979.8,10.93263118]
[1766195804598,0.002,2980.2,2979.8,10.93263118]
[1766195814231,0.002,2980.2,2979.9,0.03355817]
[1766195814433,0.002,2980.4,2979.8,9.9241007]
[1766195814628,0.002,2980.4,2979.9,2.38067594]
[1766195815134,0.002,2980.4,2979.9,1.37220987]
[1766195815310,0.002,2980.4,2980.0,1.00845929]
[1766195820416,1.6122,2980.4,2980.0,1.00845929]
[1766195820817,0.002,2980.4,2980.0,1.00845929]
[1766195821017,0.002,2980.4,2980.0,1.24662621]
[1766195830259,0.002,2980.4,2980.0,1.00845929]
[1766195831259,0.002,2980.4,2980.0,10.93155999]
[1766195831553,0.002,2980.4,2980.0,9.9231007]
[1766195832055,0.002,2980.4,2980.1,1.00843895]
[1766195832759,0.002,2980.4,2980.1,1.44943895]
[1766195849711,0.002,2980.4,2980.1,2.7240139]
[1766195849893,0.002,2980.7,2980.3,9.9231007]
[1766195851312,0.002,2980.7,2980.3,10.93144813]
[1766195853026,0.002,2980.7,2980.3,9.9231007]
[1766195853184,0.002,2980.7,2980.4,1.00834065]
[1766195856013,0.002,2981.0,2980.5,0.441]
[1766195857106,0.002,2981.0,2980.5,1.44927965]
[1766195858233,0.002,2981.0,2980.5,0.441]
[1766195858640,0.002,2981.0,2980.6,1.00827287]
[1766195859331,0.002,2981.4,2980.6,1.00827287]
[1766195860134,1.4888,2981.4,2980.6,1.00827287]
[1766195860640,1.4888,2981.4,2980.6,2.37485996]
[1766195860817,0.002,2981.0,2980.6,2.37485996]
[1766195861013,0.002,2981.0,2980.6,1.36658709]
[1766195861219,0.002,2981.0,2980.7,1.00821188]
[1766195868141,0.002,2981.0,2980.8,0.03354804]
[1766195868331,0.002,2981.0,2980.7,1.00821188]
[1766195868531,0.002,2981.0,2980.7,0.2816799]
[1766195868840,0.002,2981.0,2980.7,1.28989178]
[1766195869745,0.002,2981.0,2980.7,0.2816799]
[1766195870040,0.002,2981.0,2980.8,1.00821188]
[1766195871623,0.002,2981.0,2980.7,0.2816799]
[1766195871944,0.002,2981.0,2980.7,1.28989178]
[1766195872142,0.002,2981.0,2980.8,0.03354804]
[1766195872436,0.002,2981.0,2980.7,1.28989178]
[1766195876559,0.002,2981.0,2980.7,0.2816799]
[1766195876855,0.002,2981.0,2980.8,1.00819833]
[1766195877359,0.002,2981.4,2980.9,0.441]
[1766195877844,1.4868,2981.0,2980.9,0.441]
[1766195878024,1.4868,2981.0,2980.8,1.00819833]
[1766195878229,1.4868,2981.0,2980.5,0.442]
[1766195878429,1.4868,2981.0,2980.6,1.00821188]
[1766195878835,0.3433,2981.2,2980.6,1.00821188]
[1766195879040,1.1435,2980.9,2980.6,1.00821188]
[1766195879240,1.4868,2980.9,2980.6,1.00821188]
[1766195879416,0.3433,2981.0,2980.0,3.871]
[1766195879625,1.1435,2980.5,2980.0,5.32021188]
[1766195879820,1.4868,2980.5,2980.1,0.53202119]
[1766195880559,1.00834065,2980.6,2980.1,0.53202119]
[1766195883853,1.00834065,2980.6,2980.5,0.001]
[1766195885055,2.52604065,2980.6,2980.5,0.001]
[1766195885347,2.52604065,2980.6,2980.0,3.79769906]
[1766195885522,1.00834065,2980.6,2980.1,1.37155097]
[1766195886222,1.00834065,2980.6,2980.1,4.72714211]
[1766195890196,1.5177,2980.9,2980.1,4.72714211]
[1766195890374,1.00834065,2980.8,2980.1,4.72714211]
[1766195899020,1.00834065,2980.8,2980.1,4.76069803]
[1766195899320,1.00834065,2980.8,2980.2,0.85584023]
[1766195899708,1.5177,2980.9,2980.2,0.85584023]
[1766195899889,1.0082661,2980.9,2980.2,0.85584023]
[1766195900088,0.002,2981.1,2980.2,0.85584023]
[1766195900488,0.002,2980.8,2980.3,4.363633]
[1766195900686,0.002,2980.8,2980.4,0.96294732]
[1766195900920,1.5891,2981.1,2980.4,0.96294732]
[1766195902720,0.002,2981.1,2980.4,4.31815964]
[1766195903516,0.002,2981.1,2980.4,5.32635458]
[1766195904703,1.5891,2981.1,2980.4,5.32635458]
[1766195904892,1.5891,2981.1,2980.5,0.53263546]
[1766195924965,1.5891,2981.1,2980.5,0.53363546]
[1766195932360,0.002,2981.4,2980.5,3.88872361]
[1766195932561,1.648,2981.4,2980.5,3.88872361]
[1766195932754,1.646,2981.3,2980.5,3.88872361]
[1766195932938,1.646,2981.3,2980.6,1.57799075]
[1766195933931,0.002,2981.1,2980.6,1.57799075]
[1766195937065,1.648,2981.1,2980.6,1.57799075]
[1766195941158,1.648,2981.1,2980.5,0.53363546]
[1766195942663,0.002,2981.1,2980.5,0.53363546]
[1766195942868,0.3722,2980.9,2980.5,0.53363546]
[1766195943184,1.646,2980.6,2980.4,0.001]
[1766195943385,0.3722,2980.9,2980.3,1.0082356]
[1766195943686,3.39003911,2981.1,2980.1,0.441]
[1766195943687,1.646,2980.4,2980.1,0.441]
[1766195943888,0.441,2980.8,2980.0,0.001]
[1766195944185,1.1766,2980.4,2980.0,0.001]
[1766195944372,1.1766,2980.2,2980.0,0.001]
[1766195944570,1.5164,2980.2,2980.0,0.001]
[1766195945360,1.1766,2980.2,2980.0,0.001]
[1766195945584,1.5164,2980.4,2980.0,0.001]
[1766195950597,0.442,2980.5,2980.0,0.001]
[1766195952793,0.441,2980.8,2980.0,0.001]
[1766195952964,2.96580166,2980.8,2980.0,0.001]
[1766195953390,2.96580166,2980.8,2980.0,1.32877847]
[1766195953705,1.5164,2980.7,2980.0,1.32877847]
[1766195953873,0.3398,2980.6,2980.0,1.32877847]
[1766195954086,1.5164,2980.6,2980.0,1.76977847]
[1766195956877,0.3398,2980.6,2980.0,1.76977847]
[1766195957084,0.3398,2980.4,2980.0,1.76977847]
[1766195959463,0.3418,2980.4,2980.0,1.76977847]
[1766195959868,1.5164,2980.3,2980.0,1.76977847]
[1766195960068,1.5164,2980.3,2980.0,0.442]
[1766195960973,0.002,2980.4,2980.0,0.442]
[1766195963816,0.002,2980.4,2980.0,0.001]
[1766195964111,1.5164,2980.3,2980.0,0.001]
[1766195965607,0.002,2980.4,2980.0,0.001]
[1766195975231,2.0965,2980.8,2980.0,9.92087129]
[1766195975399,0.441,2980.8,2980.0,9.92087129]
[1766195975724,1.6555,2980.7,2980.0,9.92087129]
[1766195976125,0.002,2980.5,2980.0,9.92087129]
[1766195976321,0.002,2980.5,2980.1,1.09292696]
[1766195977729,0.002,2980.5,2980.0,0.001]
[1766195985440,1.00839827,2980.8,2980.0,0.001]
[1766195985936,2.66389827,2980.8,2980.0,0.001]
[1766195988136,1.00839827,2980.8,2980.1,0.441]
[1766195988315,0.441,2980.9,2980.1,0.441]
[1766195988511,1.00836099,2980.9,2980.1,0.8241375]
[1766195988839,1.3088,2981.0,2980.1,0.8241375]
[1766195989015,1.6555,2980.9,2980.2,1.00827287]
[1766195992243,1.6575,2980.9,2980.2,1.00827287]
[1766195994451,1.6555,2980.8,2980.2,1.00827287]
[1766195994650,1.6555,2980.8,2980.2,1.19161391]
[1766195995423,1.6555,2980.8,2980.2,0.18334104]
[1766195995751,1.6555,2980.8,2980.3,1.00827287]
[1766196000457,0.002,2980.9,2980.3,1.00827287]
[1766196001342,0.002,2980.9,2980.3,4.3636261]
[1766196001521,0.002,2980.9,2980.3,1.00827287]
[1766196001723,0.002,2980.9,2980.3,3.35534009]
[1766196001923,0.002,2981.1,2980.4,0.33553401]
[1766196002149,0.002,2981.1,2980.5,0.441]
[1766196002629,0.002,2981.1,2980.5,1.44921188]
[1766196003160,1.6575,2981.1,2980.5,1.44921188]
[1766196005252,1.6575,2981.1,2980.5,0.441]
[1766196005451,1.6575,2981.1,2980.6,1.07326456]
[1766196005757,1.6575,2981.1,2980.6,2.08145272]
[1766196007257,1.6553,2981.0,2980.6,2.08145272]
[1766196009561,1.6553,2981.0,2980.6,1.00818816]
[1766196012065,1.6553,2981.0,2980.5,0.441]
[1766196012269,1.6553,2981.0,2980.5,1.44918816]
[1766196014567,0.002,2981.1,2980.5,1.44918816]
[1766196014771,0.002,2981.1,2980.5,4.80431724]
[1766196014938,0.002,2981.1,2980.6,0.48043172]
[1766196016044,0.002,2981.1,2980.6,1.48861988]
[1766196016445,1.6553,2981.0,2980.6,1.00818816]
[1766196018270,1.6553,2981.0,2980.5,0.442]
[1766196018473,1.6553,2981.0,2980.6,1.00818816]
[1766196020163,1.6553,2981.0,2980.5,0.442]
[1766196020464,1.6553,2981.0,2980.5,1.45018816]
[1766196022465,1.6553,2981.0,2980.5,1.93074033]
[1766196024270,0.002,2981.1,2980.5,1.93074033]
[1766196025965,0.002,2981.0,2980.5,1.93074033]
[1766196030150,1.7145,2981.0,2980.5,1.45018816]
[1766196031669,1.7145,2981.0,2980.5,1.00918816]
[1766196031875,1.7125,2980.9,2980.5,1.00918816]
[1766196032375,1.7125,2980.9,2980.5,0.001]
[1766196035477,1.6764,2980.8,2980.5,0.001]
[1766196035873,0.002,2981.0,2980.5,0.001]
[1766196036172,0.77884197,2981.0,2980.2,1.00827287]
[1766196036375,0.3425,2980.6,2980.2,1.00827287]
[1766196036672,1.6764,2980.5,2980.2,1.00827287]
[1766196038876,1.3339,2980.9,2980.2,1.00827287]
[1766196039078,1.6764,2980.8,2980.2,1.00827287]
[1766196042075,1.6784,2980.8,2980.2,1.00827287]
[1766196043782,0.002,2980.8,2980.2,1.00827287]
[1766196043957,0.002,2980.8,2980.2,4.36375215]
[1766196044984,0.002,2980.8,2980.2,1.00827287]
[1766196045181,0.002,2980.8,2980.2,2.48114923]
[1766196045482,1.3339,2980.7,2980.2,2.48114923]
[1766196045673,1.6764,2980.5,2980.2,1.00827287]
[1766196046785,0.3425,2980.6,2980.1,0.001]
[1766196047002,1.6764,2980.3,2980.1,0.001]
[1766196047482,0.002,2980.8,2979.8,0.001]
[1766196047483,0.3425,2980.1,2979.8,0.001]
[1766196047783,1.6764,2980.2,2979.8,0.001]
[1766196049085,1.3339,2980.2,2979.8,0.001]
[1766196049284,1.3339,2980.0,2979.8,0.001]
[1766196049491,1.6764,2980.0,2979.8,0.001]
[1766196050165,0.441,2980.5,2979.8,0.001]
[1766196050357,1.3339,2980.1,2979.6,0.001]
[1766196050564,1.3339,2980.4,2979.4,0.001]
[1766196050759,0.3425,2980.1,2979.4,0.001]
[1766196050960,0.3425,2979.9,2979.4,0.001]
[1766196051266,1.6764,2979.7,2979.4,0.001]
[1766196053274,1.6764,2980.0,2979.4,0.001]
[1766196053482,0.441,2980.1,2979.3,0.001]
[1766196053675,0.3425,2979.7,2979.3,0.001]
[1766196053878,1.6764,2979.6,2979.3,0.001]
[1766196054078,1.6764,2979.6,2979.3,0.43782817]
[1766196054481,1.53286478,2979.6,2979.3,0.43782817]
[1766196057094,1.3339,2980.0,2979.3,0.43782817]
[1766196057292,1.3339,2979.8,2979.3,0.001]
[1766196057505,0.441,2980.1,2979.3,0.001]
[1766196057700,0.3425,2979.9,2979.3,0.001]
[1766196057904,0.3425,2979.7,2979.3,0.001]
[1766196058285,1.6764,2979.7,2979.3,0.001]
[1766196060424,2.1184,2980.3,2979.4,9.92194369]
[1766196060722,1.6784,2980.5,2979.9,9.92194369]
[1766196061288,0.002,2980.5,2979.9,10.93033179]
[1766196061487,0.002,2980.5,2979.9,9.92194369]
[1766196061717,0.002,2980.5,2980.0,2.04462486]
[1766196062118,0.002,2980.5,2980.0,1.03629437]
[1766196062327,0.002,2980.5,2980.1,1.00833049]
[1766196064395,0.002,2980.5,2979.2,0.001]
[1766196064595,0.3679,2980.0,2979.3,3.871]
[1766196064828,1.685,2979.5,2979.3,0.001]
[1766196065127,1.685,2979.5,2979.2,0.001]
[1766196065128,1.3171,2979.5,2979.2,0.001]
[1766196065329,1.685,2979.4,2979.2,0.001]
[1766196065694,0.442,2979.9,2979.4,0.001]
[1766196065899,0.3679,2979.7,2979.4,0.001]
[1766196066125,1.685,2979.7,2979.4,0.001]
[1766196067432,0.3679,2979.7,2979.4,0.001]
[1766196067728,1.685,2979.6,2979.4,0.001]
[1766196073144,0.442,2979.9,2979.2,0.001]
[1766196073145,1.8535,2979.5,2979.2,0.001]
[1766196073343,1.685,2979.5,2979.2,0.001]
[1766196073641,1.685,2979.5,2979.4,0.001]
[1766196073835,0.442,2979.8,2979.2,0.001]
[1766196074037,0.002,2979.7,2979.2,0.001]
[1766196074207,1.685,2979.6,2979.2,0.001]